bitfinex-derivatives/quotes_ETHF0:USTF0_20251225
["timestamp","ask_amount","ask_price","bid_price","bid_amount"]
[1766655981976,3.42138812,2928.4,2927.4,3.416]
[1766655982177,3.42138812,2928.4,2927.1,0.00367291]
[1766655982373,3.42138812,2928.4,2927.2,9.61]
[1766655983273,0.00438812,2928.4,2927.2,9.61]
[1766655995286,0.00438812,2928.4,2927.3,8.542]
[1766655996093,0.00438812,2928.4,2927.1,0.17460291]
[1766655996388,0.00438812,2928.4,2927.4,6.192]
[1766655996579,0.00438812,2928.4,2927.5,3.416]
[1766656010588,0.00438812,2928.4,2927.6,3.416]
[1766656029015,3.416,2928.5,2927.6,3.416]
[1766656030017,3.41977744,2928.5,2927.6,3.416]
[1766656030918,3.41977744,2928.5,2927.7,3.416]
[1766656040428,3.41977744,2928.5,2927.1,0.17460291]
[1766656040726,3.41977744,2928.5,2927.2,8.99]
[1766656040927,0.96788451,2928.4,2927.2,8.99]
[1766656041229,3.41977744,2928.5,2927.2,8.99]
[1766656041426,0.9681491,2928.4,2927.2,8.99]
[1766656041618,3.41977744,2928.5,2927.2,8.99]
[1766656041818,0.96815105,2928.4,2927.2,8.99]
[1766656042019,3.41977744,2928.5,2927.2,8.99]
[1766656042219,0.96793316,2928.4,2927.2,8.99]
[1766656042418,3.41977744,2928.5,2927.2,8.99]
[1766656042621,0.96793261,2928.4,2927.2,8.99]
[1766656042931,2.897,2928.3,2927.2,8.99]
[1766656043120,3.417,2928.2,2927.2,8.99]
[1766656043330,0.00377744,2928.5,2927.2,8.99]
[1766656043527,3.417,2928.4,2927.2,8.99]
[1766656049630,3.417,2928.4,2927.3,9.601]
[1766656060644,3.417,2928.4,2927.1,0.00367291]
[1766656060843,3.417,2928.4,2927.2,3.417]
[1766656063349,3.417,2928.4,2927.2,4.29223788]
[1766656080762,3.417,2928.4,2927.3,3.417]
[1766656085468,3.417,2928.4,2927.2,0.87523788]
[1766656085675,3.417,2928.4,2927.4,3.417]
[1766656091581,0.00377744,2928.5,2927.4,3.417]
[1766656091873,3.417,2928.4,2927.4,3.417]
[1766656098688,0.00377744,2928.5,2927.4,3.417]
[1766656098877,3.42077744,2928.5,2927.4,3.417]
[1766656101671,0.00377744,2928.5,2927.4,3.417]
[1766656101881,3.42077744,2928.5,2927.4,3.417]
[1766656140701,3.42077744,2928.5,2927.3,8.542]
[1766656140902,3.42077744,2928.5,2927.5,3.416]
[1766656142505,0.17081,2929.2,2927.5,3.416]
[1766656142708,9.58222573,2929.1,2927.5,3.416]
[1766656143011,3.416,2929.0,2927.5,3.416]
[1766656143611,3.42030611,2929.0,2927.5,3.416]
[1766656143912,3.42030611,2929.0,2927.6,6.17]
[1766656145509,3.42030611,2929.0,2927.6,6.92419047]
[1766656149717,0.00430611,2929.0,2927.6,6.92419047]
[1766656149915,3.416,2928.9,2927.6,6.92419047]
[1766656152309,0.00430611,2929.0,2927.6,7.09509047]
[1766656152509,3.42030611,2929.0,2927.6,7.09509047]
[1766656160628,0.00430611,2929.0,2927.6,7.09509047]
[1766656160817,3.416,2928.9,2927.6,7.09509047]
[1766656167337,3.416,2928.9,2927.6,7.07792612]
[1766656169932,0.00430611,2929.0,2927.6,7.07792612]
[1766656170138,3.416,2928.9,2927.6,7.07792612]
[1766656170937,3.416,2928.9,2927.6,7.08621083]
[1766656179346,3.416,2928.9,2927.7,8.54]
[1766656179545,3.416,2928.9,2927.8,3.416]
[1766656186952,0.00430611,2929.0,2927.8,3.416]
[1766656187150,3.42030611,2929.0,2927.8,3.416]
[1766656191855,0.00430611,2929.0,2927.8,3.416]
[1766656194863,0.00430611,2929.0,2927.8,3.58689]
[1766656206666,0.00430611,2929.0,2927.8,0.17089]
[1766656206972,0.00430611,2929.0,2927.9,4.855]
[1766656208873,3.42030611,2929.0,2927.9,4.855]
[1766656232802,0.00430611,2929.0,2927.9,4.855]
[1766656263930,0.00430611,2929.0,2927.9,5.60690721]
[1766656267429,0.00430611,2929.0,2927.9,4.855]
[1766656267733,0.00430611,2929.0,2927.9,5.59487273]
[1766656270237,3.42030611,2929.0,2927.9,5.59487273]
[1766656282843,1.22616175,2929.8,2927.9,5.59487273]
[1766656283039,6.11026994,2929.7,2928.6,0.00512138]
[1766656283239,0.97626994,2929.6,2928.6,3.42112138]
[1766656283441,5.134,2929.7,2928.6,3.42112138]
[1766656283639,0.97604884,2929.6,2928.6,3.42112138]
[1766656283940,0.00385253,2929.6,2928.6,3.42112138]
[1766656287238,3.41985253,2929.6,2928.6,4.17324448]
[1766656288139,3.41985253,2929.6,2928.6,3.42112138]
[1766656327483,0.00385253,2929.6,2928.6,3.42112138]
[1766656327686,3.415,2929.5,2928.6,3.42112138]
[1766656330785,3.415,2929.5,2928.6,4.165586]
[1766656331188,3.415,2929.5,2928.6,3.42112138]
[1766656331380,3.415,2929.5,2928.6,4.16036298]
[1766656334087,3.415,2929.5,2928.6,3.42112138]
[1766656334387,3.415,2929.5,2928.6,4.1768108]
[1766656334587,3.415,2929.5,2928.6,3.42112138]
[1766656336589,3.415,2929.5,2928.6,4.1768108]
[1766656343095,0.00385253,2929.6,2928.6,4.1768108]
[1766656343894,0.00385253,2929.6,2928.6,3.42112138]
[1766656360098,0.00385253,2929.6,2928.6,0.00512138]
[1766656360398,0.00385253,2929.6,2928.7,3.415]
[1766656404238,3.415,2929.7,2928.7,3.415]
[1766656405242,3.41790464,2929.7,2928.7,3.415]
[1766656423056,3.41790464,2929.7,2928.6,0.00512138]
[1766656423362,3.41790464,2929.7,2928.7,9.547]
[1766656465284,0.00290464,2929.7,2928.7,9.547]
[1766656465492,3.415,2930.0,2928.7,9.547]
[1766656466084,0.17073,2930.6,2928.8,3.8429755]
[1766656466387,4.38766135,2930.5,2928.8,3.8429755]
[1766656466688,3.415,2930.5,2928.8,8.13495511]
[1766656467473,3.415,2930.5,2928.8,3.8429755]
[1766656469084,3.415,2930.5,2928.7,14.00981961]
[1766656469492,3.415,2930.5,2928.7,9.71784]
[1766656470993,0.1739581,2930.6,2928.7,9.71784]
[1766656471292,3.51,2930.5,2928.7,9.71784]
[1766656474191,0.1739581,2930.6,2928.7,9.71784]
[1766656474391,3.415,2930.5,2928.7,9.71784]
[1766656474693,0.1739581,2930.6,2928.7,9.71784]
[1766656474894,3.415,2930.5,2928.7,9.71784]
[1766656475293,3.415,2930.5,2928.8,0.17083]
[1766656475492,3.415,2930.5,2928.8,4.0421292]
[1766656477994,0.0032281,2930.6,2928.8,4.0421292]
[1766656478185,3.415,2930.5,2928.8,4.0421292]
[1766656480188,0.0032281,2930.6,2928.8,3.8712992]
[1766656480395,3.4182281,2930.6,2928.8,3.8712992]
[1766656481494,3.4182281,2930.6,2929.0,0.17082]
[1766656481693,3.4182281,2930.6,2929.1,9.538]
[1766656481890,3.4182281,2930.6,2929.2,8.537]
[1766656482090,3.4182281,2930.6,2929.2,8.53958512]
[1766656482591,0.0032281,2930.6,2929.2,9.27516042]
[1766656482794,3.4172281,2930.6,2929.2,9.27516042]
[1766656482993,3.4172281,2930.6,2929.2,8.53958512]
[1766656484194,3.4172281,2930.6,2929.2,9.29163536]
[1766656484389,0.0032281,2930.6,2929.2,9.2900419]
[1766656485499,0.0032281,2930.6,2929.2,9.4608519]
[1766656486191,0.0032281,2930.6,2929.2,9.45789643]
[1766656487102,0.0032281,2930.6,2929.2,8.71039512]
[1766656487294,0.0032281,2930.6,2929.2,9.45789643]
[1766656487901,0.0032281,2930.6,2929.2,8.71039512]
[1766656488099,0.0032281,2930.6,2929.2,9.4567132]
[1766656488494,0.0032281,2930.6,2929.2,8.71039512]
[1766656489102,0.0032281,2930.6,2929.2,9.44550859]
[1766656489600,0.0032281,2930.6,2929.2,9.48945812]
[1766656490802,0.0032281,2930.6,2929.2,8.71039512]
[1766656490999,0.0032281,2930.6,2929.2,9.47757952]
[1766656492201,0.0032281,2930.6,2929.2,9.47113264]
[1766656493004,0.0032281,2930.6,2929.2,8.71039512]
[1766656493196,0.0032281,2930.6,2929.2,9.47113264]
[1766656494002,0.0032281,2930.6,2929.2,8.71039512]
[1766656494495,0.0032281,2930.6,2929.3,6.153]
[1766656494691,0.0032281,2930.6,2929.4,3.414]
[1766656495696,0.0032281,2930.6,2929.4,4.17315723]
[1766656496702,0.0032281,2930.6,2929.4,3.414]
[1766656497103,0.0032281,2930.6,2929.4,4.19145521]
[1766656497505,0.0032281,2930.6,2929.2,0.00258512]
[1766656497696,0.0032281,2930.6,2929.3,5.143]
[1766656502906,0.0032281,2930.6,2929.2,0.00258512]
[1766656502907,8.536,2930.5,2929.2,0.00258512]
[1766656503106,9.77062117,2930.4,2929.2,0.00258512]
[1766656503301,8.801,2930.4,2929.2,0.00258512]
[1766656503701,0.96945386,2930.3,2929.2,0.00258512]
[1766656503901,8.801,2930.4,2929.2,0.00258512]
[1766656503902,0.96946438,2930.2,2929.2,0.00258512]
[1766656504096,3.414,2930.1,2929.2,0.00258512]
[1766656510419,3.414,2930.1,2929.1,3.414]
[1766656511022,3.414,2930.1,2928.9,0.105]
[1766656511521,3.414,2930.1,2928.9,0.10893038]
[1766656515131,3.415,2930.0,2928.9,0.10893038]
[1766656520928,3.415,2929.9,2928.9,0.10893038]
[1766656524633,5.274,2930.3,2928.9,0.10893038]
[1766656524827,3.415,2930.2,2928.9,0.10893038]
[1766656528242,3.415,2930.2,2928.9,0.00393038]
[1766656528441,3.415,2930.2,2929.0,3.415]
[1766656532439,0.97134215,2930.1,2929.0,3.415]
[1766656532636,3.415,2930.2,2929.0,3.415]
[1766656532841,0.97134215,2930.1,2929.0,3.415]
[1766656533139,3.415,2930.2,2929.0,3.415]
[1766656533339,0.97134213,2930.1,2929.0,3.415]
[1766656533544,3.415,2930.2,2929.0,3.415]
[1766656533742,0.97136888,2930.1,2929.0,3.415]
[1766656533942,3.415,2930.2,2929.0,3.415]
[1766656534240,0.9713689,2930.1,2929.0,3.415]
[1766656534442,3.415,2930.2,2929.0,3.415]
[1766656534643,0.97137358,2930.1,2929.0,3.415]
[1766656534944,3.415,2930.2,2929.0,3.415]
[1766656535143,0.97137358,2930.1,2929.0,3.415]
[1766656535339,3.415,2930.2,2929.0,3.415]
[1766656535539,0.97166541,2930.1,2929.0,3.415]
[1766656535747,3.415,2930.2,2929.0,3.415]
[1766656535946,0.97166541,2930.1,2929.0,3.415]
[1766656536247,3.415,2930.2,2929.0,3.415]
[1766656536444,0.97166683,2930.1,2929.0,3.415]
[1766656536645,3.415,2930.2,2929.0,3.415]
[1766656536834,0.97167434,2930.1,2929.0,3.415]
[1766656537042,3.415,2930.2,2929.0,3.415]
[1766656537241,0.97167434,2930.1,2929.0,3.415]
[1766656537543,3.415,2930.2,2929.0,3.415]
[1766656537746,0.97168264,2930.1,2929.0,3.415]
[1766656537947,3.415,2930.2,2929.0,3.415]
[1766656538139,0.97168264,2930.1,2929.0,3.415]
[1766656538447,3.415,2930.2,2929.0,3.415]
[1766656538448,3.415,2930.0,2929.0,3.415]
[1766656564867,3.415,2930.0,2928.9,0.00393038]
[1766656565066,0.97202864,2929.9,2928.9,0.00393038]
[1766656565268,3.415,2930.0,2928.9,0.00393038]
[1766656565470,0.97191952,2929.9,2928.9,0.00393038]
[1766656565670,3.415,2930.0,2928.9,0.00393038]
[1766656565865,0.97121737,2929.9,2928.9,0.00393038]
[1766656566066,3.415,2930.0,2928.9,0.00393038]
[1766656566266,0.97121746,2929.9,2928.9,0.00393038]
[1766656566468,3.415,2930.0,2928.9,0.00393038]
[1766656566668,0.97113647,2929.9,2928.9,0.00393038]
[1766656566868,3.415,2930.0,2928.9,0.00393038]
[1766656567071,0.97113647,2929.9,2928.9,0.00393038]
[1766656567273,3.415,2930.0,2928.9,0.00393038]
[1766656567474,0.97108012,2929.9,2928.9,0.00393038]
[1766656567774,3.415,2930.0,2928.9,0.00393038]
[1766656567973,0.97108012,2929.9,2928.9,0.00393038]
[1766656568167,3.415,2930.0,2928.9,0.00393038]
[1766656568364,0.97108012,2929.9,2928.9,0.00393038]
[1766656568574,3.415,2930.0,2928.9,0.00393038]
[1766656568774,0.97103457,2929.9,2928.9,0.00393038]
[1766656568977,3.415,2930.0,2928.9,0.00393038]
[1766656569170,0.97103457,2929.9,2928.9,0.00393038]
[1766656569374,3.415,2930.0,2928.9,0.00393038]
[1766656569564,0.97098373,2929.9,2928.9,0.00393038]
[1766656569768,3.415,2930.0,2928.9,0.00393038]
[1766656569970,0.97098373,2929.9,2928.9,0.00393038]
[1766656570172,3.415,2930.0,2928.9,0.00393038]
[1766656570373,0.97098339,2929.9,2928.9,0.00393038]
[1766656570568,3.415,2930.0,2928.9,0.00393038]
[1766656570774,0.97094765,2929.9,2928.9,0.00393038]
[1766656570975,3.415,2930.0,2928.9,0.00393038]
[1766656571280,0.97094765,2929.9,2928.9,0.00393038]
[1766656571470,3.415,2930.0,2928.9,0.00393038]
[1766656571665,0.97092565,2929.9,2928.9,0.00393038]
[1766656571866,3.415,2930.0,2928.9,0.00393038]
[1766656572073,0.97092565,2929.9,2928.9,0.00393038]
[1766656572273,3.415,2930.0,2928.9,0.00393038]
[1766656572474,0.97088727,2929.9,2928.9,0.00393038]
[1766656572677,3.415,2930.0,2928.9,0.00393038]
[1766656572880,0.97088727,2929.9,2928.9,0.00393038]
[1766656573182,3.415,2930.0,2928.9,0.00393038]
[1766656573380,0.97088762,2929.9,2928.9,0.00393038]
[1766656573680,3.415,2930.0,2928.9,0.00393038]
[1766656573883,0.9708577,2929.9,2928.9,0.00393038]
[1766656574081,3.415,2930.0,2928.9,0.00393038]
[1766656574281,0.9708577,2929.9,2928.9,0.00393038]
[1766656574474,3.415,2930.0,2928.9,0.00393038]
[1766656574673,0.97083537,2929.9,2928.9,0.00393038]
[1766656574870,3.415,2930.0,2928.9,0.00393038]
[1766656575076,0.97083537,2929.9,2928.9,0.00393038]
[1766656575285,3.415,2930.0,2928.9,0.00393038]
[1766656575482,0.97081882,2929.9,2928.9,0.00393038]
[1766656575783,3.415,2930.0,2928.9,0.00393038]
[1766656576085,0.97081501,2929.9,2928.9,0.00393038]
[1766656576280,3.415,2930.0,2928.9,0.00393038]
[1766656576589,0.97080055,2929.9,2928.9,0.00393038]
[1766656576781,3.415,2930.0,2928.9,0.00393038]
[1766656576982,0.97080082,2929.9,2928.9,0.00393038]
[1766656577177,3.415,2930.0,2928.9,3.038e-05]
[1766656577378,0.97080183,2929.9,2928.9,3.038e-05]
[1766656577577,44.215,2930.0,2928.9,3.038e-05]
[1766656577772,0.97078489,2929.9,2928.9,3.038e-05]
[1766656577980,44.215,2930.0,2928.9,3.038e-05]
[1766656578184,0.97078386,2929.9,2928.9,3.038e-05]
[1766656578484,44.215,2930.0,2928.9,3.038e-05]
[1766656578673,0.97077727,2929.9,2928.9,3.038e-05]
[1766656578875,44.215,2930.0,2928.9,3.038e-05]
[1766656579076,0.97077763,2929.9,2928.9,3.038e-05]
[1766656579278,44.215,2930.0,2928.9,3.038e-05]
[1766656579476,0.97077605,2929.9,2928.9,3.038e-05]
[1766656579680,6.002,2929.8,2928.9,3.038e-05]
[1766656579875,3.415,2929.7,2928.9,3.038e-05]
[1766656586293,40.97076,2930.1,2928.9,3.038e-05]
[1766656586592,18.92749098,2930.0,2928.9,3.038e-05]
[1766656586892,0.97149098,2929.9,2928.9,3.038e-05]
[1766656587091,17.956,2930.0,2928.9,3.038e-05]
[1766656587292,0.97149098,2929.9,2928.9,3.038e-05]
[1766656587493,17.956,2930.0,2928.9,3.038e-05]
[1766656587794,0.97153431,2929.9,2928.9,3.038e-05]
[1766656588090,17.956,2930.0,2928.9,3.038e-05]
[1766656588287,0.97153431,2929.9,2928.9,3.038e-05]
[1766656588484,17.956,2930.0,2928.9,3.038e-05]
[1766656588684,0.97158578,2929.9,2928.9,3.038e-05]
[1766656588884,17.956,2930.0,2928.9,3.038e-05]
[1766656589096,0.97158578,2929.9,2928.9,3.038e-05]
[1766656589294,40.97076,2930.1,2928.9,3.038e-05]
[1766656589494,18.93364731,2930.0,2928.9,3.038e-05]
[1766656589696,0.97164731,2929.9,2928.9,3.038e-05]
[1766656589893,17.962,2930.0,2928.9,3.038e-05]
[1766656590094,0.97164731,2929.9,2928.9,3.038e-05]
[1766656590295,17.962,2930.0,2928.9,3.038e-05]
[1766656590497,0.97165699,2929.9,2928.9,3.038e-05]
[1766656590792,17.962,2930.0,2928.9,3.038e-05]
[1766656590993,0.97165694,2929.9,2928.9,3.038e-05]
[1766656591195,17.962,2930.0,2928.9,3.038e-05]
[1766656591389,0.97166617,2929.9,2928.9,3.038e-05]
[1766656591586,0.97166617,2929.8,2928.9,3.038e-05]
[1766656591792,3.415,2929.7,2928.9,3.038e-05]
[1766656592092,6.013,2929.6,2928.9,3.038e-05]
[1766656592289,6.013,2929.6,2928.7,3.415]
[1766656593194,6.013,2929.6,2928.7,3.41843067]
[1766656609319,40.97076,2930.1,2928.7,3.41843067]
[1766656609623,18.9371511,2930.0,2928.7,3.41843067]
[1766656609917,0.9721511,2929.9,2928.7,3.41843067]
[1766656610119,0.9721511,2929.8,2928.7,3.41843067]
[1766656610420,3.415,2929.7,2928.7,3.41843067]
[1766656610621,6.013,2929.6,2928.7,3.41843067]
[1766656611623,40.97076,2930.1,2928.7,3.41843067]
[1766656611921,9.427,2930.0,2928.7,3.41843067]
[1766656613423,1.22616175,2930.5,2928.7,3.41843067]
[1766656613625,17.966,2930.4,2928.7,3.41843067]
[1766656613824,0.97177089,2930.3,2928.7,3.41843067]
[1766656614019,0.97177089,2930.2,2928.7,3.41843067]
[1766656614224,4.38677089,2930.1,2928.7,3.41843067]
[1766656614419,6.013,2930.0,2928.7,3.41843067]
[1766656617428,6.013,2930.0,2928.7,0.95547325]
[1766656617629,0.97144803,2929.9,2928.8,3.415]
[1766656617822,6.013,2930.0,2928.7,0.95547325]
[1766656617823,3.415,2929.8,2928.7,0.95547325]
[1766656618023,3.415,2929.8,2928.8,3.415]
[1766656622327,3.415,2929.8,2928.7,0.95547325]
[1766656622531,3.415,2929.8,2928.7,4.37047325]
[1766656623627,3.415,2929.8,2928.7,3.41843067]
[1766656624029,0.97135425,2929.7,2928.7,3.067e-05]
[1766656624329,3.415,2929.8,2928.7,3.067e-05]
[1766656624526,0.9713477,2929.7,2928.7,3.067e-05]
[1766656624824,3.415,2929.8,2928.7,3.067e-05]
[1766656625025,0.97134771,2929.7,2928.7,3.067e-05]
[1766656625222,3.415,2929.8,2928.7,3.067e-05]
[1766656625422,0.97120952,2929.7,2928.7,3.067e-05]
[1766656625627,9.51018715,2929.6,2928.5,6.09837439]
[1766656625830,10.39924937,2929.5,2928.5,6.09837439]
[1766656626030,9.428,2929.5,2928.5,5.83917439]
[1766656626239,9.428,2929.5,2928.5,5.57997439]
[1766656626845,0.00512138,2929.3,2928.7,0.00512138]
[1766656627030,3.415,2929.2,2928.7,0.00512138]
[1766656645247,0.00512138,2929.3,2928.7,0.00512138]
[1766656645447,3.416,2929.2,2928.7,0.00512138]
[1766656646846,5.737,2929.5,2928.7,0.00512138]
[1766656647051,3.416,2929.3,2928.7,0.00512138]
[1766656654354,3.416,2929.3,2928.6,3.157]
[1766656654558,3.416,2929.3,2928.6,2.8382]
[1766656654757,3.416,2929.3,2928.6,2.7386]
[1766656654951,3.416,2929.3,2928.5,5.58413241]
[1766656655162,0.00512138,2929.2,2928.5,8.84073241]
[1766656656162,0.00512138,2929.2,2928.6,0.00512138]
[1766656658361,0.00512138,2929.2,2928.5,8.84073241]
[1766656659361,0.00512138,2929.2,2928.6,0.00512138]
[1766656664252,3.42112138,2929.2,2928.6,0.00512138]
[1766656666562,0.00512138,2929.2,2928.6,0.00512138]
[1766656666862,3.42112138,2929.2,2928.6,0.00512138]
[1766656671569,6.012,2929.4,2928.6,0.00512138]
[1766656671759,3.416,2929.3,2928.6,0.00512138]
[1766656672572,0.00512138,2929.2,2928.6,0.00512138]
[1766656680377,0.00512138,2929.2,2928.5,8.84073241]
[1766656680573,0.00512138,2929.2,2928.5,8.58173241]
[1766656680770,0.00512138,2929.2,2928.5,8.42233241]
[1766656680970,3.416,2929.1,2928.5,8.14333241]
[1766656681477,3.416,2929.1,2928.5,8.14845379]
[1766656689594,3.416,2929.1,2928.5,7.98905379]
[1766656690391,3.416,2929.1,2928.5,3.4252794]
[1766656692193,3.416,2929.1,2928.5,0.0092794]
[1766656709304,0.00512138,2929.2,2928.5,0.0092794]
[1766656709505,3.416,2929.1,2928.5,0.0092794]
[1766656739022,3.416,2929.1,2928.4,2.3792]
[1766656739225,3.416,2929.1,2928.4,0.17229073]
[1766656739422,3.416,2929.1,2928.3,9.552]
[1766656740125,3.416,2929.1,2928.4,0.00512138]
[1766656744230,3.416,2929.1,2928.3,9.55472603]
[1766656745231,3.416,2929.1,2928.4,0.00512138]
[1766656761452,3.416,2929.1,2928.3,9.03632603]
[1766656761646,3.416,2929.1,2928.3,8.77712603]
[1766656761951,3.416,2929.1,2928.3,8.35842603]
[1766656762451,3.416,2929.1,2928.4,0.00341424]
[1766656772053,0.00512138,2929.2,2928.4,0.00341424]
[1766656772260,4.187,2929.1,2928.4,0.00341424]
[1766656781163,4.187,2929.1,2928.3,3.41872603]
[1766656781461,4.187,2929.1,2928.3,3.23932603]
[1766656785160,4.187,2929.1,2928.3,3.17952603]
[1766656785364,4.187,2929.1,2928.1,0.74314969]
[1766656786058,4.187,2929.1,2928.0,3.416]
[1766656786559,4.187,2929.1,2928.0,3.4196384]
[1766656786858,4.187,2929.1,2928.0,4.16278809]
[1766656790867,4.187,2929.1,2928.0,3.4196384]
[1766656801472,5.72412138,2929.2,2928.0,3.4196384]
[1766656801679,3.157,2929.0,2928.0,3.4196384]
[1766656801978,3.42112138,2929.2,2928.0,3.4196384]
[1766656808482,3.42112138,2929.2,2928.0,0.0036384]
[1766656808789,9.51689539,2929.1,2927.4,3.416]
[1766656808981,0.97691524,2929.0,2927.5,3.416]
[1766656809180,9.422,2928.9,2927.6,3.416]
[1766656809586,40.80512138,2929.2,2927.6,3.416]
[1766656809781,9.422,2929.1,2927.6,3.42033044]
[1766656809987,9.422,2929.0,2927.6,3.39756954]
[1766656810380,9.422,2929.0,2927.6,0.00433044]
[1766656810782,0.97679631,2928.9,2927.6,0.00433044]
[1766656810982,9.422,2929.0,2927.6,0.00433044]
[1766656811187,0.97680274,2928.9,2927.6,0.00433044]
[1766656811387,9.422,2929.0,2927.6,0.00433044]
[1766656811988,40.97593138,2929.2,2927.6,3.42033044]
[1766656812181,6.011,2928.9,2927.6,3.42033044]
[1766656813583,3.416,2928.8,2927.6,3.42033044]
[1766656820698,3.58683,2928.8,2927.6,0.00433044]
[1766656820894,0.97587226,2928.7,2927.3,3.416]
[1766656821199,0.97587226,2928.6,2927.3,3.416]
[1766656821400,3.416,2928.5,2927.3,3.416]
[1766656821999,3.41850308,2928.5,2927.3,3.41954102]
[1766656822495,0.00250308,2928.5,2927.3,3.41954102]
[1766656822807,7.313,2928.4,2927.3,3.41954102]
[1766656825411,9.429,2928.3,2927.3,3.41954102]
[1766656826312,0.00250308,2928.5,2927.3,3.41954102]
[1766656826512,9.429,2928.4,2927.3,3.41954102]
[1766656828115,0.00250308,2928.5,2927.3,3.41954102]
[1766656828314,9.43,2928.4,2927.3,3.41954102]
[1766656834522,0.00250308,2928.5,2927.3,3.41954102]
[1766656834722,6.012,2928.3,2927.3,3.41954102]
[1766656837725,0.00250308,2928.5,2927.3,3.41954102]
[1766656837926,9.429,2928.4,2927.3,4.16169291]
[1766656838124,9.429,2928.4,2927.3,4.16614196]
[1766656839317,9.429,2928.4,2927.3,4.15738176]
[1766656839728,9.429,2928.4,2927.3,3.41954102]
[1766656839928,9.429,2928.4,2927.3,4.15738176]
[1766656840330,9.429,2928.4,2927.3,4.16020615]
[1766656841230,9.429,2928.4,2927.3,4.17690947]
[1766656842231,9.429,2928.4,2927.3,3.41954102]
[1766656842431,9.429,2928.4,2927.3,4.173012]
[1766656843933,0.00250308,2928.5,2927.3,4.173012]
[1766656844127,0.00250308,2928.5,2927.3,4.16646443]
[1766656845426,0.00250308,2928.5,2927.3,4.15349002]
[1766656846235,0.00250308,2928.5,2927.3,3.41954102]
[1766656846423,0.00250308,2928.5,2927.3,4.15293252]
[1766656847234,0.00250308,2928.5,2927.3,4.16714698]
[1766656847633,0.00250308,2928.5,2927.3,3.41954102]
[1766656848334,0.00250308,2928.5,2927.3,4.15763623]
[1766656848836,0.00250308,2928.5,2927.3,4.17298193]
[1766656849833,0.00250308,2928.5,2927.3,4.15365601]
[1766656850237,0.00250308,2928.5,2927.3,3.41954102]
[1766656850538,0.00250308,2928.5,2927.3,4.15365601]
[1766656851033,0.00250308,2928.5,2927.3,3.41954102]
[1766656851940,0.00250308,2928.5,2927.3,4.15784651]
[1766656852738,3.41850308,2928.5,2927.3,3.41954102]
[1766656852932,3.41850308,2928.5,2927.3,4.15849908]
[1766656853331,3.41850308,2928.5,2927.3,3.41954102]
[1766656854140,3.41850308,2928.5,2927.3,4.16741932]
[1766656854344,3.41850308,2928.5,2927.3,3.41954102]
[1766656854741,3.41850308,2928.5,2927.3,4.16495714]
[1766656856441,3.41850308,2928.5,2927.3,4.15303501]
[1766656857842,3.41850308,2928.5,2927.3,12.71127583]
[1766656859047,3.41850308,2928.5,2927.3,11.96154102]
[1766656859349,3.41850308,2928.5,2927.3,12.70378325]
[1766656860249,3.41850308,2928.5,2927.3,11.96154102]
[1766656860440,3.41850308,2928.5,2927.3,12.7106845]
[1766656861250,3.41850308,2928.5,2927.3,11.96154102]
[1766656862348,3.41850308,2928.5,2927.3,12.7106845]
[1766656863447,3.41850308,2928.5,2927.3,11.96154102]
[1766656864552,3.41850308,2928.5,2927.3,12.69775766]
[1766656865354,3.41850308,2928.5,2927.3,12.70686867]
[1766656865857,3.41850308,2928.5,2927.3,12.71415276]
[1766656866348,3.41850308,2928.5,2927.3,11.96154102]
[1766656867155,3.41850308,2928.5,2927.3,12.71415276]
[1766656867357,3.41850308,2928.5,2927.3,11.96154102]
[1766656868353,3.41850308,2928.5,2927.3,12.6954622]
[1766656868553,3.41850308,2928.5,2927.4,6.113]
[1766656869759,3.41850308,2928.5,2927.4,6.84607128]
[1766656871150,3.41850308,2928.5,2927.4,6.113]
[1766656871351,3.41850308,2928.5,2927.4,6.85473054]
[1766656872458,3.41850308,2928.5,2927.4,6.87083966]
[1766656873562,3.41850308,2928.5,2927.4,6.113]
[1766656874062,3.41850308,2928.5,2927.4,6.85656399]
[1766656874262,3.41850308,2928.5,2927.4,6.113]
[1766656874463,3.41850308,2928.5,2927.4,6.85656399]
[1766656876266,3.41850308,2928.5,2927.4,6.113]
[1766656876460,3.41850308,2928.5,2927.4,6.86212909]
[1766656877261,3.41850308,2928.5,2927.4,6.113]
[1766656877560,3.41850308,2928.5,2927.4,6.86256051]
[1766656878363,3.41850308,2928.5,2927.4,6.113]
[1766656878566,3.41850308,2928.5,2927.4,6.85484651]
[1766656878866,0.00250308,2928.5,2927.4,6.85484651]
[1766656879062,3.416,2928.8,2927.4,7.02575651]
[1766656880065,3.42019519,2928.8,2927.4,7.02575651]
[1766656880567,3.42019519,2928.8,2927.4,6.28391]
[1766656880869,3.42019519,2928.8,2927.4,7.03921291]
[1766656881369,0.00419519,2928.8,2927.4,7.03921291]
[1766656881560,3.42019519,2928.8,2927.4,6.28391]
[1766656881766,3.42019519,2928.8,2927.4,7.03022342]
[1766656883371,3.42019519,2928.8,2927.4,6.28391]
[1766656883566,3.42019519,2928.8,2927.4,7.02308097]
[1766656884375,3.42019519,2928.8,2927.4,6.28391]
[1766656884671,3.42019519,2928.8,2927.4,7.02182869]
[1766656884874,3.42019519,2928.8,2927.4,6.28391]
[1766656885667,3.42019519,2928.8,2927.4,7.02182869]
[1766656886476,3.42019519,2928.8,2927.4,7.0418462]
[1766656887877,0.00419519,2928.8,2927.4,7.0418462]
[1766656888078,3.416,2928.7,2927.4,6.28391]
[1766656888277,3.416,2928.7,2927.4,7.02815421]
[1766656889075,3.416,2928.7,2927.4,6.28391]
[1766656889276,3.416,2928.7,2927.4,7.01978491]
[1766656890282,0.00419519,2928.8,2927.4,7.01978491]
[1766656890475,3.416,2928.7,2927.4,7.03827527]
[1766656892277,3.416,2928.7,2927.4,6.28391]
[1766656892477,3.416,2928.7,2927.4,7.04015793]
[1766656894882,3.416,2928.7,2927.4,6.28391]
[1766656895481,3.416,2928.7,2927.4,7.04258477]
[1766656896582,3.416,2928.7,2927.5,3.416]
[1766656901488,3.416,2928.7,2927.5,11.957]
[1766656903184,3.42019519,2928.8,2927.5,11.957]